bitfinex/quotes_BTCUSD_20240613
["timestamp","ask_amount","ask_price","bid_price","bid_amount"]
[1718285318372,0.00873757,67987.0,67986.0,1.20302176]
[1718285319187,0.00873757,67987.0,67986.0,1.20300032]
[1718285322039,0.00873757,67987.0,67986.0,1.22077528]
[1718285322243,0.00873757,67987.0,67986.0,1.23827317]
[1718285322985,0.00873757,67987.0,67986.0,1.22076245]
[1718285323867,0.00873757,67987.0,67986.0,0.93166245]
[1718285324075,0.15582357,67987.0,67986.0,0.93166245]
[1718285324304,0.00873757,67987.0,67986.0,0.93166245]
[1718285325145,0.00873757,67987.0,67986.0,1.0022878]
[1718285325680,0.00873757,67987.0,67986.0,0.9882878]
[1718285325877,0.00873757,67987.0,67986.0,0.98829337]
[1718285326265,0.00873757,67987.0,67986.0,0.99829337]
[1718285326477,0.00873757,67987.0,67986.0,1.12249337]
[1718285326675,0.00873757,67987.0,67986.0,1.11249337]
[1718285326898,0.00873757,67987.0,67986.0,1.12998151]
[1718285327318,0.00873757,67987.0,67986.0,1.11598151]
[1718285327519,0.00873757,67987.0,67986.0,1.11249337]
[1718285328110,0.00873757,67987.0,67986.0,1.14398151]
[1718285328386,0.00873757,67987.0,67986.0,1.13998151]
[1718285328587,0.00873757,67987.0,67986.0,1.11249337]
[1718285328798,0.00873757,67987.0,67986.0,1.12649337]
[1718285328946,0.00873757,67987.0,67986.0,1.14398599]
[1718285329298,0.00873757,67987.0,67986.0,1.37361841]
[1718285329512,0.00873757,67987.0,67986.0,1.31715284]
[1718285329740,0.00873757,67987.0,67986.0,1.27361841]
[1718285329965,0.00873757,67987.0,67986.0,1.33892006]
[1718285330187,0.00873757,67987.0,67986.0,1.4653286]
[1718285330429,0.00873757,67987.0,67986.0,1.33892006]
[1718285330647,0.00873757,67987.0,67986.0,1.48610843]
[1718285331072,0.00873757,67987.0,67986.0,1.46435983]
[1718285331284,0.00873757,67987.0,67986.0,1.25955983]
[1718285331501,0.00873757,67987.0,67986.0,0.97481405]
[1718285331743,0.15582357,67987.0,67986.0,0.97481405]
[1718285331962,0.15582357,67987.0,67986.0,0.76762356]
[1718285332192,0.20352357,67987.0,67986.0,0.78694617]
[1718285332401,0.20352357,67987.0,67986.0,0.66762356]
[1718285332609,0.20352357,67987.0,67986.0,0.55030037]
[1718285332818,0.56829657,67987.0,67986.0,0.55030037]
[1718285333040,0.56860607,67987.0,67986.0,0.24527359]
[1718285333261,0.56860607,67987.0,67986.0,0.12327294]
[1718285333685,0.86277907,67987.0,67986.0,0.07327294]
[1718285333893,0.194797,67982.0,67981.0,0.05]
[1718285334310,0.30291057,67987.0,67986.0,0.16932261]
[1718285334311,0.00873757,67987.0,67986.0,0.16932261]
[1718285334522,0.00873757,67987.0,67986.0,0.15]
[1718285334727,0.15582357,67987.0,67986.0,0.27202136]
[1718285335139,0.20352357,67987.0,67986.0,0.17202136]
[1718285335347,0.20352357,67987.0,67986.0,0.35818132]
[1718285335978,0.20352357,67987.0,67986.0,0.34418132]
[1718285336307,0.20352357,67987.0,67986.0,0.37750393]
[1718285336707,0.05643757,67987.0,67986.0,0.37750393]
[1718285336947,0.20352357,67987.0,67986.0,0.35818132]
[1718285337144,0.20352357,67987.0,67986.0,0.37218132]
[1718285337516,0.20352357,67987.0,67986.0,0.25015996]
[1718285337718,0.20352357,67987.0,67986.0,0.23615996]
[1718285337947,0.20352357,67987.0,67986.0,0.22215996]
[1718285338562,0.05643757,67987.0,67986.0,0.24148257]
[1718285338762,0.00623757,67987.0,67986.0,0.37750269]
[1718285339455,0.00623757,67987.0,67986.0,0.52182262]
[1718285339658,0.00623757,67987.0,67986.0,0.82684893]
[1718285339824,0.00623757,67987.0,67986.0,0.82683895]
[1718285340072,0.00723757,67987.0,67986.0,0.82683895]
[1718285340270,0.00723757,67987.0,67986.0,1.02683895]
[1718285340419,0.00723757,67987.0,67986.0,1.03683895]
[1718285340627,0.00723757,67987.0,67986.0,1.08041575]
[1718285340873,0.00723757,67987.0,67986.0,1.23531575]
[1718285341088,0.00723757,67987.0,67986.0,1.72319441]
[1718285341385,0.00723757,67987.0,67986.0,1.59132171]
[1718285341698,0.51857,68000.0,67999.0,0.66932261]
[1718285341900,0.665628,68000.0,67999.0,1.22130992]
[1718285342117,0.51857,68000.0,67999.0,1.22130992]
[1718285342266,0.51857,68000.0,67999.0,1.0963126]
[1718285342467,0.51857,68000.0,67999.0,0.79133275]
[1718285342948,0.51857,68000.0,67999.0,0.77201014]
[1718285343175,0.51857,68000.0,67999.0,0.79133275]
[1718285343604,0.665628,68000.0,67999.0,0.79133275]
[1718285343756,0.665628,68000.0,67999.0,0.17201014]
[1718285343961,0.713328,68000.0,67999.0,0.17201014]
[1718285344358,1.0077545,68000.0,67999.0,0.05]
[1718285344580,0.19476,67999.0,67998.0,0.05]
[1718285344783,0.19476,67999.0,67998.0,0.15]
[1718285344784,0.19226,67999.0,67998.0,0.15]
[1718285344985,0.19226,67999.0,67998.0,0.16932261]
[1718285345185,0.19226,67999.0,67998.0,0.15]
[1718285345609,0.19226,67999.0,67998.0,0.27199541]
[1718285346677,0.18976,67999.0,67998.0,0.17199541]
[1718285346990,0.18976,67999.0,67998.0,0.05]
[1718285347252,0.51957,68000.0,67999.0,0.15]
[1718285347454,0.51957,68000.0,67999.0,0.29131908]
[1718285347872,0.51957,68000.0,67999.0,0.27199647]
[1718285348272,0.51957,68000.0,67999.0,0.29131908]
[1718285349220,0.51957,68000.0,67999.0,0.30531908]
[1718285349426,0.51957,68000.0,67999.0,0.75460242]
[1718285349616,0.51957,68000.0,67999.0,0.86480242]
[1718285349833,0.51857,68000.0,67999.0,0.75060242]
[1718285350034,0.51857,68000.0,67999.0,1.49988405]
[1718285350207,0.51857,68000.0,67999.0,1.54988405]
[1718285350410,0.51642342,68000.0,67999.0,1.78362069]
[1718285350817,0.51642342,68000.0,67999.0,1.67466661]
[1718285351018,0.51642342,68000.0,67999.0,1.77466661]
[1718285351195,0.49942342,68000.0,67999.0,1.82466661]
[1718285351399,0.48242342,68000.0,67999.0,1.82466661]
[1718285351604,0.00857,68027.0,68025.0,1.13422261]
[1718285351837,0.00857,68027.0,68026.0,0.42340061]
[1718285352015,0.0006,68057.0,68032.0,1.07340061]
[1718285352016,0.1558195,68055.0,68032.0,1.07340061]
[1718285352220,0.1558195,68055.0,68032.0,1.65483901]
[1718285352221,0.0088795,68055.0,68032.0,1.65483901]
[1718285352429,0.00624745,68034.0,68033.0,0.1]
[1718285352621,0.00624745,68034.0,68033.0,0.96181537]
[1718285352827,0.00624745,68034.0,68033.0,0.60697697]
[1718285353078,0.00624745,68034.0,68033.0,0.65697697]
[1718285353291,0.00624745,68034.0,68033.0,0.98827697]
[1718285353745,0.00624745,68034.0,68033.0,0.99827697]
[1718285354116,0.00624745,68034.0,68033.0,0.94827697]
[1718285354319,0.00624745,68034.0,68033.0,0.99827697]
[1718285354937,0.00624745,68034.0,68033.0,1.03827697]
[1718285355139,0.00624745,68034.0,68033.0,1.01227697]
[1718285355337,0.00624745,68034.0,68033.0,1.00227697]
[1718285356124,0.00624745,68034.0,68033.0,0.99827697]
[1718285356735,0.00624745,68034.0,68033.0,1.01227697]
[1718285357094,0.00624745,68034.0,68033.0,1.01218269]
[1718285357280,0.0002694,68051.0,68050.0,0.16850061]
[1718285357477,0.0002694,68051.0,68050.0,0.31282054]
[1718285358306,0.0002694,68051.0,68050.0,0.19431993]
[1718285358485,0.0002694,68051.0,68050.0,0.31282054]
[1718285359968,0.0002694,68051.0,68050.0,0.31254254]
[1718285360180,0.0002694,68051.0,68050.0,0.1489]
[1718285360402,0.1472174,68051.0,68050.0,0.049722]
[1718285361024,0.1472174,68051.0,68050.0,0.1489]
[1718285361975,0.1472174,68051.0,68050.0,0.16822261]
[1718285362172,0.1472174,68051.0,68050.0,0.1489]
[1718285362612,0.1472174,68051.0,68050.0,0.1629]
[1718285363176,0.1475269,68051.0,68050.0,0.028]
[1718285363383,0.34897186,68051.0,68050.0,0.028]
[1718285363598,1.25746586,68051.0,68050.0,0.028]
[1718285363808,0.96356886,68051.0,68050.0,0.042]
[1718285364008,0.90644383,68051.0,68050.0,0.042]
[1718285364220,0.2683174,68051.0,68050.0,0.1909]
[1718285364434,0.2683174,68051.0,68050.0,0.091722]
[1718285364638,0.2683174,68051.0,68050.0,0.1909]
[1718285365050,0.2683174,68051.0,68050.0,0.091722]
[1718285365256,0.2683174,68051.0,68050.0,0.1909]
[1718285365456,0.0002694,68051.0,68050.0,0.4267025]
[1718285365657,0.0002694,68051.0,68050.0,0.5267025]
[1718285366164,0.0002694,68051.0,68050.0,0.4987025]
[1718285366936,0.0002694,68051.0,68050.0,0.4847025]
[1718285367331,0.0002694,68051.0,68050.0,0.6394025]
[1718285367509,0.0002694,68051.0,68050.0,1.1674025]
[1718285367701,0.0002694,68051.0,68050.0,1.1774025]
[1718285367902,0.0002694,68051.0,68050.0,1.47588628]
[1718285368210,0.0002694,68051.0,68050.0,1.46188628]
[1718285368831,0.0002694,68051.0,68050.0,1.51188628]
[1718285369048,0.0002694,68051.0,68050.0,1.66188628]
[1718285369251,0.0002694,68051.0,68050.0,1.86654476]
[1718285369455,0.0002694,68051.0,68050.0,1.88399097]
[1718285369701,0.0002694,68051.0,68050.0,1.86654476]
[1718285369904,0.0002694,68051.0,68050.0,1.56255156]
[1718285370107,0.0002694,68051.0,68050.0,1.66255156]
[1718285370279,0.0011294,68051.0,68050.0,1.56255156]
[1718285370487,0.0011294,68051.0,68050.0,1.50253286]
[1718285370682,0.0011294,68051.0,68050.0,1.51253286]
[1718285370883,0.0011294,68051.0,68050.0,1.56253286]
[1718285371080,0.0011294,68051.0,68050.0,1.67653286]
[1718285371681,0.0011294,68051.0,68050.0,1.6765314]
[1718285372342,0.0011294,68051.0,68050.0,1.6625314]
[1718285372678,0.267999,68074.0,68050.0,1.6625314]
[1718285372679,0.293568,68128.0,68079.0,0.05]
[1718285372896,0.146886,68080.0,68079.0,0.05]
[1718285373561,0.14689,68078.0,68077.0,0.05]
[1718285373774,0.14689,68078.0,68075.0,0.2]
[1718285373989,0.14689,68078.0,68077.0,0.15]
[1718285374211,0.00857,68091.0,68090.0,0.05]
[1718285374212,0.146862,68091.0,68090.0,0.05]
[1718285374816,0.14687,68087.0,68086.0,0.05]
[1718285375018,0.146873,68086.0,68085.0,0.05]
[1718285375262,0.146875,68085.0,68084.0,0.12215996]
[1718285375483,0.01731723,68096.0,68091.0,0.05]
[1718285375672,0.192057,68093.0,68092.0,0.05]
[1718285375854,0.0452,68093.0,68092.0,0.05]
[1718285376058,0.0452,68093.0,68092.0,0.1]
[1718285376260,0.146846,68099.0,68098.0,0.05]
[1718285376469,0.146846,68099.0,68098.0,0.27215996]
[1718285376692,0.0452,68104.0,68098.0,0.22215996]
[1718285376845,0.0452,68104.0,68102.0,0.15]
[1718285377194,0.0452,68104.0,68102.0,0.05]
[1718285377195,0.146836,68103.0,68102.0,0.05]
[1718285377390,0.159036,68103.0,68102.0,0.05]
[1718285377670,0.146836,68103.0,68102.0,0.15]
[1718285377880,0.146823,68109.0,68108.0,0.05]
[1718285378291,0.0122,68110.0,68103.0,0.05]
[1718285378507,0.0122,68110.0,68100.0,0.1]
[1718285378508,0.14684,68101.0,68100.0,0.1]
[1718285379115,0.440521,68101.0,68100.0,0.1]
[1718285379344,0.440521,68101.0,68098.0,0.08615996]
[1718285379345,0.452735,68099.0,68098.0,0.13615996]
[1718285379559,0.452735,68099.0,68098.0,0.014]
[1718285379560,0.79665493,68099.0,68098.0,0.014]
[1718285379781,1.17001042,68099.0,68098.0,0.014]
[1718285379994,1.17001042,68099.0,68098.0,0.013722]
[1718285380202,1.17001042,68099.0,68091.0,0.07215996]
[1718285380203,0.0122,68093.0,68091.0,0.07215996]
[1718285380408,0.440625,68085.0,68079.0,0.05]
[1718285380583,0.746575,68085.0,68079.0,0.05]
[1718285380838,0.746575,68085.0,68072.0,0.05]
[1718285381064,0.746575,68085.0,68067.0,0.07215996]
[1718285381065,0.146892,68077.0,68073.0,0.05]
[1718285381264,0.146892,68077.0,68076.0,0.19402585]
[1718285382097,0.440676,68077.0,68076.0,0.19402585]
[1718285382276,0.146892,68077.0,68076.0,0.19402585]
[1718285382496,0.440676,68077.0,68076.0,0.07215996]
[1718285382703,0.146892,68077.0,68076.0,0.07215996]
[1718285383224,0.146892,68077.0,68076.0,0.19402919]
[1718285384803,0.73446,68077.0,68076.0,0.19402919]
[1718285385245,0.807906,68077.0,68076.0,0.19402919]
[1718285385461,0.807906,68077.0,68076.0,0.19403114]
[1718285385462,0.72946,68077.0,68076.0,0.19403114]
[1718285386091,0.16731993,68084.0,68069.0,0.05]
[1718285386092,0.440722,68070.0,68069.0,0.05]
[1718285386310,0.146907,68070.0,68069.0,0.05]
[1718285386513,0.440722,68070.0,68069.0,0.17187459]
[1718285386716,0.146907,68070.0,68069.0,0.17187459]
[1718285387133,0.146907,68070.0,68069.0,0.27187459]
[1718285387572,0.146907,68070.0,68069.0,0.17187459]
[1718285388654,0.746737,68070.0,68069.0,0.12187459]
[1718285388893,0.90574763,68070.0,68069.0,0.12187459]
[1718285389102,0.90574763,68070.0,68050.0,0.17310596]
[1718285389103,0.146942,68054.0,68053.0,0.05]
[1718285389319,0.146942,68054.0,68053.0,0.17189963]
[1718285389522,0.440826,68054.0,68053.0,0.12189963]
[1718285389930,0.440826,68054.0,68053.0,0.12161563]
[1718285390147,0.146946,68052.0,68051.0,0.05]
[1718285390355,0.440838,68052.0,68051.0,0.05]
[1718285390567,0.440845,68051.0,68050.0,0.07310596]
[1718285390994,0.146955,68048.0,68047.0,0.05]
[1718285391908,0.146955,68048.0,68047.0,0.12215996]
[1718285392810,0.146955,68048.0,68047.0,0.22215996]
[1718285393221,0.146947,68052.0,68051.0,0.15]
[1718285393855,0.440839,68052.0,68051.0,0.05]
[1718285394063,0.147955,68048.0,68047.0,0.13415996]
[1718285394265,0.441865,68048.0,68047.0,0.13415996]
[1718285394695,0.147955,68048.0,68047.0,0.13415996]
[1718285395261,0.147955,68048.0,68047.0,0.23415996]
[1718285395826,0.147955,68048.0,68047.0,0.13415996]
[1718285396464,0.147955,68048.0,68047.0,0.26779207]
[1718285396660,0.147955,68048.0,68047.0,0.24815996]
[1718285396864,0.001,68048.0,68047.0,0.24815996]
[1718285397076,0.001,68048.0,68047.0,0.26779207]
[1718285397270,0.146955,68048.0,68047.0,0.23615996]
[1718285398132,0.146955,68048.0,68047.0,0.22215996]
[1718285398333,0.146955,68048.0,68047.0,0.12215996]
[1718285398936,0.146955,68048.0,68043.0,0.1]
[1718285398937,0.146963,68044.0,68043.0,0.1]
[1718285399154,0.0160155,68048.0,68039.0,0.05]
[1718285399155,0.146972,68040.0,68039.0,0.05]
[1718285399830,0.14679529,68040.0,68039.0,0.16934811]
[1718285400051,0.14679529,68040.0,68039.0,0.149716]
[1718285400227,0.146972,68040.0,68039.0,0.049716]
[1718285400427,0.1776,68052.0,68037.0,0.049716]
[1718285400636,0.1776,68052.0,68034.0,0.07215996]
[1718285400637,0.440949,68035.0,68034.0,0.07215996]
[1718285401069,0.146983,68035.0,68034.0,0.19179207]
[1718285401270,0.02994012,68056.0,68048.0,0.1]
[1718285401476,0.147946,68052.0,68051.0,0.07215996]
[1718285401794,0.147946,68052.0,68051.0,0.24150807]
[1718285401795,0.001,68052.0,68051.0,0.24150807]
[1718285402203,0.146932,68059.0,68058.0,0.1]
[1718285403261,0.146933,68058.0,68057.0,0.049716]
[1718285403668,0.146933,68058.0,68054.0,0.1]
[1718285403669,0.146946,68052.0,68047.0,0.014]
[1718285403894,0.146955,68048.0,68047.0,0.063716]
[1718285404157,0.14431993,68058.0,68051.0,0.17215996]
[1718285404383,0.146957,68047.0,68046.0,0.049716]
[1718285404609,0.146957,68047.0,68046.0,0.149716]
[1718285405282,0.16731993,68057.0,68047.0,0.149716]
[1718285405505,0.146942,68054.0,68053.0,0.07215996]
[1718285405725,0.023,68065.0,68056.0,0.049716]
[1718285405933,0.293794,68075.0,68064.0,0.07215996]
[1718285405934,0.146916,68066.0,68064.0,0.07215996]
[1718285406150,0.146918,68065.0,68064.0,0.07215996]
[1718285406756,0.0122,68072.0,68066.0,0.1]
[1718285406960,0.146914,68067.0,68066.0,0.1]
[1718285407306,0.146914,68067.0,68048.0,0.049716]
[1718285407307,0.0122,68066.0,68048.0,0.049716]
[1718285407526,0.14695,68050.0,68049.0,0.43295979]
[1718285407748,0.16731993,68065.0,68052.0,0.1]
[1718285408011,0.146946,68052.0,68051.0,0.1]
[1718285408225,0.0122,68066.0,68059.0,0.1]
[1718285408435,0.146919,68065.0,68064.0,0.07215996]
[1718285409054,0.059884,68076.0,68065.0,0.1]
[1718285409055,0.14691,68069.0,68065.0,0.1]
[1718285409272,0.146916,68066.0,68065.0,0.1]
[1718285409476,0.146918,68065.0,68064.0,0.07215996]
[1718285409679,0.146922,68063.0,68062.0,0.049716]
[1718285410141,0.0596,68076.0,68058.0,0.006]
[1718285410142,0.146931,68059.0,68058.0,0.006]
[1718285410356,0.58511293,68059.0,68058.0,0.006]
[1718285410574,1.37243693,68059.0,68058.0,0.006]
[1718285410776,0.146961,68045.0,68044.0,0.049438]
[1718285410904,0.75504393,68059.0,68037.0,0.1242]
[1718285410905,0.146963,68044.0,68043.0,0.049438]
[1718285411279,0.146963,68044.0,68035.0,0.05817539]
[1718285411280,0.15901623,68044.0,68035.0,0.05817539]
[1718285411429,0.440943,68036.0,68035.0,0.00873739]
[1718285411653,0.16731993,68043.0,68035.0,0.00873739]
[1718285411818,0.146985,68034.0,68033.0,0.049438]
[1718285412288,0.16731993,68043.0,68031.0,0.049438]
[1718285412289,0.29394,68041.0,68031.0,0.049438]
[1718285412460,0.146987,68033.0,68032.0,0.049438]
[1718285413216,0.293956,68038.0,68029.0,0.049438]
[1718285413427,0.29394,68041.0,68026.0,0.07215996]
[1718285413428,0.023,68037.0,68026.0,0.12159796]
[1718285413625,0.023,68037.0,68026.0,0.07215996]
[1718285413829,0.147,68027.0,68026.0,0.07215996]
[1718285414605,0.023,68040.0,68026.0,0.07215996]
[1718285414760,0.146994,68030.0,68026.0,0.07215996]
[1718285414963,0.023,68042.0,68031.0,0.1]
[1718285415178,0.0596,68052.0,68041.0,0.07215996]
[1718285415383,0.146952,68049.0,68048.0,0.07215996]
[1718285415787,0.146936,68057.0,68051.0,0.049438]
[1718285416015,0.146936,68057.0,68056.0,0.17215996]
[1718285416211,0.146936,68057.0,68056.0,0.07215996]
[1718285416586,0.146936,68057.0,68056.0,0.17215996]
[1718285416952,0.146914,68067.0,68061.0,0.049438]
[1718285417157,0.146914,68067.0,68066.0,0.07215996]
[1718285417398,0.146906,68071.0,68068.0,0.1]
[1718285417609,0.146895,68076.0,68070.0,0.1]
[1718285417842,0.146885,68081.0,68077.0,0.1]
[1718285418067,0.0596,68087.0,68075.0,0.07215996]
[1718285418068,0.0596,68087.0,68076.0,0.1]
[1718285418272,0.0596,68087.0,68075.0,0.07215996]
[1718285418273,0.146872,68087.0,68086.0,0.07215996]
[1718285418472,0.058774,68091.0,68086.0,0.17215996]
[1718285418679,0.058774,68091.0,68090.0,0.16907011]
[1718285418884,0.058774,68091.0,68090.0,0.149438]
[1718285419055,0.058774,68091.0,68090.0,0.16907011]
[1718285419311,0.0596,68105.0,68092.0,0.1]
[1718285419523,0.14431993,68104.0,68099.0,0.17215996]
[1718285419694,0.146842,68100.0,68099.0,0.07215996]
[1718285420120,0.146842,68100.0,68099.0,0.07187596]
[1718285420337,0.146842,68100.0,68096.0,0.07215996]
[1718285420338,0.14431993,68100.0,68096.0,0.07215996]
[1718285420548,0.146847,68098.0,68096.0,0.07215996]
[1718285420750,0.146837,68103.0,68096.0,0.07215996]
[1718285420945,0.0596,68109.0,68096.0,0.12159796]
[1718285421178,0.14431993,68108.0,68098.0,0.1]
[1718285421382,0.00857,68120.0,68103.0,0.07215996]
[1718285421383,0.146822,68110.0,68103.0,0.07215996]
[1718285421670,0.0596,68117.0,68103.0,0.07215996]
[1718285421896,0.0596,68117.0,68096.0,0.07215996]
[1718285421897,0.14431993,68109.0,68092.0,0.049438]
[1718285422118,0.01499399,68108.0,68088.0,0.049438]
[1718285422357,0.01499399,68108.0,68086.0,0.07215996]
[1718285422358,0.29366,68106.0,68090.0,0.049438]
[1718285422585,0.2204,68102.0,68087.0,0.049438]
[1718285422808,0.146856,68094.0,68091.0,0.07215996]
[1718285423035,0.146846,68099.0,68095.0,0.049438]
[1718285423311,0.000562,68125.0,68104.0,0.049438]
[1718285423554,0.146829,68106.0,68105.0,0.07215996]
[1718285423777,0.146829,68106.0,68098.0,0.01]
[1718285423778,0.14431993,68111.0,68100.0,0.049438]
[1718285424015,0.14431993,68111.0,68098.0,0.1]
[1718285424016,0.146845,68099.0,68098.0,0.049438]
[1718285424235,0.2204,68117.0,68098.0,0.049438]
[1718285424236,0.14684,68102.0,68098.0,0.049438]
[1718285424457,0.14684,68102.0,68088.0,0.1]
[1718285424458,0.28,68117.0,68103.0,0.049438]
[1718285424678,0.28,68117.0,68100.0,0.07215996]
[1718285424679,0.293622,68115.0,68100.0,0.07215996]
[1718285424878,0.16731993,68114.0,68100.0,0.07215996]
[1718285425414,0.29364,68111.0,68099.0,0.049438]
[1718285425613,0.146837,68103.0,68099.0,0.049438]
[1718285425823,0.293649,68109.0,68095.0,0.014]
[1718285426043,0.146851,68096.0,68095.0,0.014]
[1718285426273,0.35077093,68096.0,68095.0,0.014]
[1718285426496,0.37377093,68096.0,68095.0,0.014]
[1718285426707,0.66747393,68096.0,68095.0,0.014]
[1718285426944,0.96117693,68096.0,68095.0,0.014]
[1718285427166,0.000562,68093.0,68074.0,0.049438]
[1718285427381,0.146892,68077.0,68076.0,0.43295979]
[1718285427592,0.146898,68074.0,68073.0,0.049438]
[1718285428253,0.146905,68071.0,68070.0,0.049438]
[1718285428459,0.146905,68071.0,68056.0,0.07215996]
[1718285428460,0.2204,68083.0,68071.0,0.049438]
[1718285428664,0.19573553,68082.0,68070.0,0.049438]
[1718285429081,0.19573553,68082.0,68068.0,0.049438]
[1718285429082,0.146909,68069.0,68068.0,0.049438]
[1718285429306,0.146914,68067.0,68066.0,0.049438]
[1718285429766,0.293793,68076.0,68059.0,0.1112]
[1718285429767,0.146918,68065.0,68064.0,0.049438]
[1718285429993,0.293804,68073.0,68063.0,0.049154]
[1718285429994,0.14692,68064.0,68063.0,0.049154]
[1718285430413,0.2204,68073.0,68060.0,0.149154]
[1718285430636,0.146919,68065.0,68064.0,0.1]
[1718285430854,0.146924,68062.0,68061.0,0.1]
[1718285431056,0.14431993,68072.0,68060.0,0.149154]
[1718285431257,0.023,68071.0,68061.0,0.1]
[1718285431463,0.146927,68061.0,68060.0,0.149154]
[1718285431898,0.146918,68066.0,68060.0,0.149154]
[1718285432095,0.146918,68066.0,68063.0,0.1]
[1718285432572,0.146922,68063.0,68062.0,0.049154]
[1718285433102,0.2204,68080.0,68062.0,0.049154]
[1718285433103,0.293764,68082.0,68065.0,0.049154]
[1718285433312,0.16816593,68081.0,68059.0,0.049154]
[1718285433520,0.221246,68079.0,68060.0,0.049154]
[1718285433907,0.16731993,68081.0,68055.0,0.049154]
[1718285433908,0.2204,68071.0,68055.0,0.049154]
[1718285434086,0.2204,68071.0,68051.0,0.1139]
[1718285434087,0.146939,68055.0,68054.0,0.049154]
[1718285434303,0.20391993,68070.0,68054.0,0.049154]
[1718285434304,0.22691993,68070.0,68054.0,0.049154]
[1718285434517,0.146939,68055.0,68054.0,0.049154]
[1718285435145,0.04577659,68069.0,68053.0,0.049154]
[1718285435146,0.2204,68068.0,68053.0,0.049154]
[1718285435370,0.146942,68054.0,68053.0,0.049154]
[1718285435598,0.141942,68054.0,68053.0,0.049154]
[1718285435853,0.141942,68054.0,68041.0,0.09179207]
[1718285435854,0.146961,68045.0,68043.0,0.049154]
[1718285436084,0.15851413,68054.0,68040.0,0.049154]
[1718285436085,0.43851413,68054.0,68040.0,0.049154]
[1718285436318,0.293911,68048.0,68040.0,0.049154]
[1718285436537,0.16731993,68053.0,68039.0,0.049154]
[1718285436538,0.146972,68040.0,68039.0,0.049154]
[1718285436779,0.146976,68038.0,68037.0,0.049154]
[1718285437004,0.146978,68037.0,68036.0,0.049154]
[1718285437703,0.146978,68037.0,68036.0,0.149154]
[1718285437935,0.14431993,68053.0,68040.0,0.149154]
[1718285438193,0.14697,68041.0,68040.0,0.049154]
[1718285438660,0.293897,68052.0,68031.0,0.1139]
[1718285438661,0.146978,68037.0,68036.0,0.049154]
[1718285438881,0.146978,68037.0,68036.0,0.149154]
[1718285439315,0.146978,68037.0,68036.0,0.049154]
[1718285439526,0.293939,68042.0,68035.0,0.07215996]
[1718285439527,0.146981,68036.0,68035.0,0.07215996]
[1718285439951,0.146981,68036.0,68035.0,0.12131396]
[1718285440156,0.146981,68036.0,68035.0,0.07188196]
[1718285440363,0.146983,68035.0,68034.0,0.049154]
[1718285440533,0.146983,68035.0,68034.0,0.16878611]
[1718285440735,0.001,68037.0,68036.0,0.049154]
[1718285440947,0.147978,68037.0,68036.0,0.049154]
[1718285441159,0.147978,68037.0,68033.0,0.17215996]
[1718285441160,0.146981,68036.0,68035.0,0.049154]
[1718285441582,0.001,68037.0,68036.0,0.16878611]
[1718285441807,0.001,68037.0,68035.0,0.049154]
[1718285441808,0.146981,68036.0,68035.0,0.049154]
[1718285442051,0.001,68037.0,68034.0,0.049154]
[1718285442052,0.146983,68035.0,68034.0,0.049154]
[1718285442508,0.146985,68034.0,68033.0,0.22131396]
[1718285442923,0.146985,68034.0,68033.0,0.12131396]
[1718285443805,0.146987,68033.0,68032.0,0.049154]
[1718285444208,0.146989,68032.0,68031.0,0.049154]
[1718285444654,0.293959,68037.0,68028.0,0.149154]
[1718285444655,0.440988,68029.0,68028.0,0.149154]
[1718285444862,0.000846,68047.0,68027.0,0.049154]
[1718285444863,0.146998,68028.0,68027.0,0.049154]
[1718285445275,0.147,68027.0,68026.0,0.12131396]
[1718285445483,0.441,68027.0,68026.0,0.12131396]
[1718285445945,0.441,68027.0,68023.0,0.009416]
[1718285445946,0.294013,68024.0,68023.0,0.009416]
[1718285446178,0.735032,68024.0,68023.0,0.009416]
[1718285446391,0.90235193,68024.0,68023.0,0.009416]
[1718285447773,1.35511093,68024.0,68023.0,1e-06]
[1718285447999,1.47179612,68024.0,68023.0,1e-06]
[1718285449030,1.56007612,68024.0,68023.0,1e-06]
[1718285449256,1.56007612,68024.0,67987.0,0.01963211]
[1718285449257,0.441201,67996.0,67989.0,0.049154]
[1718285449471,0.4853211,67996.0,67989.0,0.049154]
[1718285449674,0.8024551,67996.0,67988.0,0.049154]
[1718285449920,0.94677503,67996.0,67987.0,0.049154]
[1718285450159,0.94677503,67996.0,67986.0,0.12131396]
[1718285450369,0.94677503,67996.0,67986.0,0.07215996]
[1718285450580,0.90265493,67996.0,67986.0,0.07215996]
[1718285451473,0.90265493,67996.0,67985.0,0.07215996]
[1718285452095,0.60852093,67996.0,67985.0,0.17215996]
[1718285452581,0.147034,68012.0,68003.0,0.049154]
[1718285452799,0.294056,68015.0,68003.0,0.049154]
[1718285452800,0.147047,68006.0,68003.0,0.149154]
[1718285453004,0.147047,68006.0,68002.0,0.09179207]
[1718285453005,0.147028,68014.0,68009.0,0.22131396]
[1718285453211,0.294014,68024.0,68009.0,0.22131396]
[1718285453472,0.294014,68024.0,68014.0,0.1]
[1718285453679,0.14703,68013.0,68012.0,0.1]
[1718285454130,0.147032,68012.0,68011.0,0.049154]
[1718285454544,0.147032,68012.0,68011.0,0.149154]
[1718285454759,0.147032,68012.0,68011.0,0.16878611]
[1718285455823,0.147032,68012.0,68011.0,0.149154]
[1718285456038,0.14431993,68023.0,68014.0,0.099716]
[1718285456249,0.147028,68014.0,68013.0,0.099716]
[1718285456458,0.147032,68012.0,68011.0,0.162754]
[1718285456669,0.294036,68019.0,68008.0,0.049154]
[1718285456670,0.294048,68016.0,68008.0,0.049154]
[1718285456883,0.294048,68016.0,68004.0,0.1117]
[1718285456884,0.294058,68014.0,68004.0,0.1117]
[1718285457105,0.14431993,68013.0,68000.0,0.049154]
[1718285457337,0.147056,68001.0,68000.0,0.049154]
[1718285457553,0.147063,67998.0,67997.0,0.211416]
[1718285457778,0.147063,67998.0,67997.0,0.28020211]
[1718285457992,0.14431993,68013.0,68000.0,0.049154]
[1718285458214,0.023,68012.0,68000.0,0.049154]
[1718285458428,0.147056,68001.0,68000.0,0.049154]